[Event "Titled Tuesday Blitz April 18 Early 2023"]
[White "Prieto Aranguren, Alain"]
[Black "Gatterer, Florian"]
[WhiteFideId "2268906"]
[BlackFideId "811688"]
[WhiteElo "2209"]
[BlackElo "2221"]
[Result "1-0"]
[Round "03"]
[TimeControl "180+2"]
[Date "2023.04.18"]
[WhiteClock "0:00:12"]
[BlackClock "0:00:03"]

1. d4 {[%clk 0:03:00]}  Nf6 {[%clk 0:02:59]} 2. c4 {[%clk 0:02:57]}  g6 {[%clk 0:02:59]} 3. Nc3 {[%clk 0:02:56]}  d5 {[%clk 0:02:59]} 4. Nf3 {[%clk 0:02:54]}  Bg7 {[%clk 0:02:58]} 5. Qb3 {[%clk 0:02:54]}  dxc4 {[%clk 0:02:49]} 6. Qxc4 {[%clk 0:02:50]}  Be6 {[%clk 0:02:49]} 7. Qb5+ {[%clk 0:02:47]}  Bd7 {[%clk 0:02:48]} 8. Qb3 {[%clk 0:02:44]}  c5 {[%clk 0:02:43]} 9. d5 {[%clk 0:02:42]}  b5 {[%clk 0:02:16]} 10. Nxb5 {[%clk 0:02:30]}  O-O {[%clk 0:02:15]} 11. Nc3 {[%clk 0:02:26]}  Na6 {[%clk 0:02:14]} 12. e4 {[%clk 0:02:24]}  Rb8 {[%clk 0:02:08]} 13. Qd1 {[%clk 0:02:22]}  Qa5 {[%clk 0:01:59]} 14. Bd2 {[%clk 0:02:20]}  Nc7 {[%clk 0:01:54]} 15. Nb5 {[%clk 0:02:10]}  Qb6 {[%clk 0:01:48]} 16. Nxc7 {[%clk 0:02:09]}  Qxc7 {[%clk 0:01:48]} 17. Qc2 {[%clk 0:02:03]}  Nxe4 {[%clk 0:01:44]} 18. Qxe4 {[%clk 0:01:58]}  Rxb2 {[%clk 0:01:44]} 19. Rd1 {[%clk 0:01:55]}  Bf5 {[%clk 0:01:36]} 20. Qc4 {[%clk 0:01:47]}  Rc2 {[%clk 0:01:26]} 21. Qa4 {[%clk 0:01:41]}  c4 {[%clk 0:00:50]} 22. Be2 {[%clk 0:01:15]}  c3 {[%clk 0:00:50]} 23. Be3 {[%clk 0:01:01]}  Rb8 {[%clk 0:00:43]} 24. Nd4 {[%clk 0:00:51]}  Bxd4 {[%clk 0:00:36]} 25. Bxd4 {[%clk 0:00:46]}  Rxe2+ {[%clk 0:00:12]} 26. Kxe2 {[%clk 0:00:38]}  c2 {[%clk 0:00:12]} 27. Rc1 {[%clk 0:00:28]}  Qf4 {[%clk 0:00:12]} 28. Rhe1 {[%clk 0:00:17]}  Qg4+ {[%clk 0:00:10]} 29. Kf1 {[%clk 0:00:16]}  h5 {[%clk 0:00:05]} 30. h3 {[%clk 0:00:15]}  Qf4 {[%clk 0:00:04]} 31. Kg1 {[%clk 0:00:13]}  Rb1 {[%clk 0:00:04]} 32. Qe8+ {[%clk 0:00:12]}  Kh7 {[%clk 0:00:03]} 33. Qh8# {[%clk 0:00:12]} 1-0


[Site "https://www.chess.com"]

[Event "Titled Tuesday Blitz April 18 Early 2023"]
[White "Federzoni, Enzo"]
[Black "dDobravcan"]
[WhiteFideId "2173301"]
[WhiteElo "2039"]
[BlackElo "2164"]
[Result "1-0"]
[Round "03"]
[TimeControl "180+2"]
[Date "2023.04.18"]
[WhiteClock "0:02:23"]
[BlackClock "0:00:03"]

1. Nf3 {[%clk 0:03:00]}  d6 {[%clk 0:02:58]} 2. e4 {[%clk 0:02:59]}  Nf6 {[%clk 0:02:55]} 3. Nc3 {[%clk 0:02:59]}  c6 {[%clk 0:02:55]} 4. d4 {[%clk 0:02:58]}  Bg4 {[%clk 0:02:54]} 5. Bc4 {[%clk 0:02:57]}  e6 {[%clk 0:02:51]} 6. O-O {[%clk 0:02:57]}  d5 {[%clk 0:02:50]} 7. exd5 {[%clk 0:02:55]}  cxd5 {[%clk 0:02:49]} 8. Bb5+ {[%clk 0:02:55]}  Nc6 {[%clk 0:02:47]} 9. h3 {[%clk 0:02:55]}  Bxf3 {[%clk 0:02:39]} 10. Qxf3 {[%clk 0:02:56]}  Qb6 {[%clk 0:02:23]} 11. Be3 {[%clk 0:02:52]}  a6 {[%clk 0:02:17]} 12. Bxc6+ {[%clk 0:02:50]}  Qxc6 {[%clk 0:02:17]} 13. a4 {[%clk 0:02:48]}  Bd6 {[%clk 0:02:02]} 14. Bg5 {[%clk 0:02:44]}  Nd7 {[%clk 0:01:59]} 15. Rfe1 {[%clk 0:02:42]}  O-O {[%clk 0:01:59]} 16. Qg4 {[%clk 0:02:40]}  Kh8 {[%clk 0:01:50]} 17. Re3 {[%clk 0:02:38]}  f5 {[%clk 0:01:25]} 18. Qe2 {[%clk 0:02:34]}  f4 {[%clk 0:01:03]} 19. Rxe6 {[%clk 0:02:30]}  f3 {[%clk 0:01:02]} 20. gxf3 {[%clk 0:02:28]}  h6 {[%clk 0:00:55]} 21. Be7 {[%clk 0:02:28]}  Rf5 {[%clk 0:00:09]} 22. Bxd6 {[%clk 0:02:22]}  Rg5+ {[%clk 0:00:03]} 23. Bg3 {[%clk 0:02:23]} 1-0


[Site "https://www.chess.com"]

[Event "Titled Tuesday Blitz April 18 Early 2023"]
[White "Wahedi, Ahmad Siar"]
[Black "Vanek, Tomas"]
[WhiteFideId "4651260"]
[BlackFideId "313459"]
[WhiteElo "2251"]
[BlackElo "2052"]
[Result "0-1"]
[Round "03"]
[TimeControl "180+2"]
[Date "2023.04.18"]
[WhiteClock "0:02:33"]
[BlackClock "0:02:25"]

1. e4 {[%clk 0:03:00]}  c5 {[%clk 0:02:58]} 2. Nf3 {[%clk 0:03:00]}  Nc6 {[%clk 0:02:58]} 3. a3 {[%clk 0:02:58]}  g6 {[%clk 0:02:57]} 4. h4 {[%clk 0:02:57]}  h5 {[%clk 0:02:54]} 5. Bc4 {[%clk 0:02:57]}  Bg7 {[%clk 0:02:52]} 6. d3 {[%clk 0:02:56]}  e6 {[%clk 0:02:51]} 7. Ba2 {[%clk 0:02:56]}  d5 {[%clk 0:02:49]} 8. exd5 {[%clk 0:02:55]}  exd5 {[%clk 0:02:49]} 9. Nc3 {[%clk 0:02:55]}  Be6 {[%clk 0:02:46]} 10. Ng5 {[%clk 0:02:54]}  Nf6 {[%clk 0:02:44]} 11. O-O {[%clk 0:02:47]}  O-O {[%clk 0:02:44]} 12. Nxe6 {[%clk 0:02:41]}  fxe6 {[%clk 0:02:44]} 13. Re1 {[%clk 0:02:41]}  Nd4 {[%clk 0:02:42]} 14. Bg5 {[%clk 0:02:38]}  Qd6 {[%clk 0:02:36]} 15. Ne2 {[%clk 0:02:36]}  Ng4 {[%clk 0:02:32]} 16. Nxd4 {[%clk 0:02:35]}  Qh2+ {[%clk 0:02:26]} 17. Kf1 {[%clk 0:02:33]}  Rxf2# {[%clk 0:02:25]} 0-1


[Site "https://www.chess.com"]

[Event "Titled Tuesday Blitz April 18 Early 2023"]
[White "Sandholm, Klas"]
[Black "Urbina Perez, Juan Antonio"]
[WhiteFideId "510203"]
[BlackFideId "2217368"]
[WhiteElo "2134"]
[BlackElo "2197"]
[Result "0-1"]
[Round "03"]
[TimeControl "180+2"]
[Date "2023.04.18"]
[WhiteClock "0:00:28"]
[BlackClock "0:00:27"]

1. d4 {[%clk 0:03:00]}  d5 {[%clk 0:02:59]} 2. c4 {[%clk 0:03:00]}  c6 {[%clk 0:02:59]} 3. Nf3 {[%clk 0:03:00]}  Nf6 {[%clk 0:03:00]} 4. Nc3 {[%clk 0:03:00]}  a6 {[%clk 0:03:00]} 5. cxd5 {[%clk 0:03:00]}  cxd5 {[%clk 0:03:01]} 6. Bf4 {[%clk 0:02:59]}  Nc6 {[%clk 0:03:02]} 7. e3 {[%clk 0:02:59]}  Bg4 {[%clk 0:03:02]} 8. Be2 {[%clk 0:02:59]}  e6 {[%clk 0:03:01]} 9. h3 {[%clk 0:02:58]}  Bxf3 {[%clk 0:03:01]} 10. Bxf3 {[%clk 0:02:58]}  Bd6 {[%clk 0:03:01]} 11. Bxd6 {[%clk 0:02:55]}  Qxd6 {[%clk 0:03:02]} 12. O-O {[%clk 0:02:55]}  O-O {[%clk 0:03:02]} 13. Rc1 {[%clk 0:02:54]}  Rac8 {[%clk 0:03:03]} 14. Na4 {[%clk 0:02:53]}  Nd7 {[%clk 0:03:02]} 15. Qd2 {[%clk 0:02:49]}  g6 {[%clk 0:02:56]} 16. Nc5 {[%clk 0:02:45]}  Nxc5 {[%clk 0:02:48]} 17. Rxc5 {[%clk 0:02:46]}  Rfd8 {[%clk 0:02:41]} 18. Rfc1 {[%clk 0:02:45]}  Ne7 {[%clk 0:02:41]} 19. R1c3 {[%clk 0:02:30]}  b6 {[%clk 0:02:37]} 20. Rxc8 {[%clk 0:02:25]}  Rxc8 {[%clk 0:02:38]} 21. Qc1 {[%clk 0:02:24]}  Rxc3 {[%clk 0:02:28]} 22. Qxc3 {[%clk 0:02:25]}  Qc6 {[%clk 0:02:26]} 23. Qxc6 {[%clk 0:02:18]}  Nxc6 {[%clk 0:02:27]} 24. Be2 {[%clk 0:02:17]}  b5 {[%clk 0:01:55]} 25. Kf1 {[%clk 0:02:16]}  Kf8 {[%clk 0:01:55]} 26. Ke1 {[%clk 0:02:16]}  Ke7 {[%clk 0:01:55]} 27. Kd2 {[%clk 0:02:17]}  Kd6 {[%clk 0:01:56]} 28. Kc3 {[%clk 0:02:17]}  Kc7 {[%clk 0:01:55]} 29. h4 {[%clk 0:02:08]}  h6 {[%clk 0:01:49]} 30. g4 {[%clk 0:02:01]}  g5 {[%clk 0:01:47]} 31. hxg5 {[%clk 0:01:59]}  hxg5 {[%clk 0:01:48]} 32. Bd3 {[%clk 0:01:56]}  Kb6 {[%clk 0:01:43]} 33. Bh7 {[%clk 0:01:55]}  Ne7 {[%clk 0:01:40]} 34. Kb3 {[%clk 0:01:50]}  a5 {[%clk 0:01:38]} 35. Kc3 {[%clk 0:01:50]}  b4+ {[%clk 0:01:35]} 36. Kc2 {[%clk 0:01:48]}  f5 {[%clk 0:01:31]} 37. f3 {[%clk 0:01:39]}  Kb5 {[%clk 0:01:28]} 38. Kd3 {[%clk 0:01:32]}  a4 {[%clk 0:01:25]} 39. gxf5 {[%clk 0:01:19]}  exf5 {[%clk 0:01:24]} 40. e4 {[%clk 0:01:20]}  dxe4+ {[%clk 0:01:24]} 41. fxe4 {[%clk 0:01:21]}  f4 {[%clk 0:01:15]} 42. e5 {[%clk 0:01:18]}  g4 {[%clk 0:01:08]} 43. Be4 {[%clk 0:01:17]}  f3 {[%clk 0:00:56]} 44. Ke3 {[%clk 0:01:02]}  Kc4 {[%clk 0:00:55]} 45. Bd3+ {[%clk 0:01:02]}  Kd5 {[%clk 0:00:54]} 46. Be4+ {[%clk 0:01:02]}  Ke6 {[%clk 0:00:53]} 47. Bc2 {[%clk 0:00:48]}  Nd5+ {[%clk 0:00:48]} 48. Kf2 {[%clk 0:00:47]}  Nf4 {[%clk 0:00:38]} 49. Bxa4 {[%clk 0:00:37]}  Kd5 {[%clk 0:00:38]} 50. Bd7 {[%clk 0:00:34]}  Nd3+ {[%clk 0:00:32]} 51. Ke3 {[%clk 0:00:33]}  f2 {[%clk 0:00:31]} 52. Ke2 {[%clk 0:00:32]}  g3 {[%clk 0:00:30]} 53. Bh3 {[%clk 0:00:28]}  Nf4+ {[%clk 0:00:27]} 0-1


[Site "https://www.chess.com"]

[Event "Titled Tuesday Blitz April 18 Early 2023"]
[White "Begunov, Konstantin"]
[Black "Necula, Iulian"]
[WhiteFideId "4118510"]
[BlackFideId "1232380"]
[WhiteElo "2087"]
[BlackElo "1790"]
[Result "1/2-1/2"]
[Round "03"]
[TimeControl "180+2"]
[Date "2023.04.18"]
[WhiteClock "0:00:24"]
[BlackClock "0:00:22"]

1. d4 {[%clk 0:02:57]}  d6 {[%clk 0:03:00]} 2. c4 {[%clk 0:02:56]}  f5 {[%clk 0:03:00]} 3. Nc3 {[%clk 0:02:55]}  Nf6 {[%clk 0:03:01]} 4. Bg5 {[%clk 0:02:54]}  Nbd7 {[%clk 0:03:01]} 5. Qc2 {[%clk 0:02:52]}  e6 {[%clk 0:03:00]} 6. e4 {[%clk 0:02:49]}  h6 {[%clk 0:02:53]} 7. Bxf6 {[%clk 0:01:56]}  Qxf6 {[%clk 0:02:49]} 8. exf5 {[%clk 0:01:46]}  exf5 {[%clk 0:02:47]} 9. Nd5 {[%clk 0:01:42]}  Qd8 {[%clk 0:02:44]} 10. Qxf5 {[%clk 0:01:39]}  Ne5 {[%clk 0:02:22]} 11. Qe4 {[%clk 0:01:30]}  c6 {[%clk 0:02:19]} 12. Nc3 {[%clk 0:01:22]}  Be7 {[%clk 0:02:07]} 13. dxe5 {[%clk 0:01:21]}  O-O {[%clk 0:02:06]} 14. e6 {[%clk 0:01:14]}  Bg5 {[%clk 0:01:59]} 15. Bd3 {[%clk 0:00:54]}  Rf6 {[%clk 0:01:34]} 16. Qh7+ {[%clk 0:00:53]}  Kf8 {[%clk 0:01:34]} 17. Qh8+ {[%clk 0:00:50]}  Ke7 {[%clk 0:01:34]} 18. Qxg7+ {[%clk 0:00:49]}  Kxe6 {[%clk 0:01:34]} 19. Nf3 {[%clk 0:00:43]}  Qe7 {[%clk 0:00:59]} 20. Nxg5+ {[%clk 0:00:37]}  hxg5 {[%clk 0:00:58]} 21. Qxe7+ {[%clk 0:00:29]}  Kxe7 {[%clk 0:00:59]} 22. Ne4 {[%clk 0:00:28]}  Re6 {[%clk 0:00:58]} 23. O-O {[%clk 0:00:27]}  g4 {[%clk 0:00:56]} 24. Ng3 {[%clk 0:00:19]}  Kf6 {[%clk 0:00:54]} 25. Rfe1 {[%clk 0:00:20]}  Rxe1+ {[%clk 0:00:47]} 26. Rxe1 {[%clk 0:00:20]}  Bd7 {[%clk 0:00:48]} 27. Re3 {[%clk 0:00:17]}  Rg8 {[%clk 0:00:47]} 28. f3 {[%clk 0:00:18]}  gxf3 {[%clk 0:00:46]} 29. Rxf3+ {[%clk 0:00:18]}  Ke7 {[%clk 0:00:45]} 30. Bf5 {[%clk 0:00:18]}  Be8 {[%clk 0:00:43]} 31. Re3+ {[%clk 0:00:17]}  Kd8 {[%clk 0:00:43]} 32. Re6 {[%clk 0:00:16]}  Kc7 {[%clk 0:00:43]} 33. Rh6 {[%clk 0:00:16]}  Rf8 {[%clk 0:00:38]} 34. Rh7+ {[%clk 0:00:17]}  Kb6 {[%clk 0:00:38]} 35. b3 {[%clk 0:00:16]}  Kc5 {[%clk 0:00:38]} 36. h4 {[%clk 0:00:16]}  b5 {[%clk 0:00:38]} 37. cxb5 {[%clk 0:00:15]}  cxb5 {[%clk 0:00:39]} 38. h5 {[%clk 0:00:15]}  a5 {[%clk 0:00:39]} 39. h6 {[%clk 0:00:16]}  Bf7 {[%clk 0:00:30]} 40. Rg7 {[%clk 0:00:15]}  Bg8 {[%clk 0:00:30]} 41. h7 {[%clk 0:00:16]}  Bxh7 {[%clk 0:00:30]} 42. Rxh7 {[%clk 0:00:17]}  a4 {[%clk 0:00:29]} 43. Rc7+ {[%clk 0:00:16]}  Kb4 {[%clk 0:00:29]} 44. Rc3 {[%clk 0:00:16]}  Kxc3 {[%clk 0:00:27]} 45. bxa4 {[%clk 0:00:16]}  bxa4 {[%clk 0:00:27]} 46. Be6 {[%clk 0:00:14]}  Kd4 {[%clk 0:00:23]} 47. Bd7 {[%clk 0:00:12]}  a3 {[%clk 0:00:20]} 48. Be6 {[%clk 0:00:12]}  d5 {[%clk 0:00:20]} 49. Nf5+ {[%clk 0:00:11]}  Ke5 {[%clk 0:00:19]} 50. Bd7 {[%clk 0:00:12]}  Rxf5 {[%clk 0:00:18]} 51. Bxf5 {[%clk 0:00:11]}  Kxf5 {[%clk 0:00:19]} 52. Kf2 {[%clk 0:00:12]}  Ke4 {[%clk 0:00:19]} 53. Ke2 {[%clk 0:00:12]}  d4 {[%clk 0:00:18]} 54. Kd2 {[%clk 0:00:13]}  Kf4 {[%clk 0:00:15]} 55. Kd3 {[%clk 0:00:14]}  Kg3 {[%clk 0:00:15]} 56. Kxd4 {[%clk 0:00:14]}  Kxg2 {[%clk 0:00:16]} 57. Kc3 {[%clk 0:00:15]}  Kf3 {[%clk 0:00:16]} 58. Kb3 {[%clk 0:00:16]}  Ke4 {[%clk 0:00:16]} 59. Kxa3 {[%clk 0:00:17]}  Kd5 {[%clk 0:00:17]} 60. Kb4 {[%clk 0:00:18]}  Kc6 {[%clk 0:00:18]} 61. Ka5 {[%clk 0:00:19]}  Kb7 {[%clk 0:00:19]} 62. Kb5 {[%clk 0:00:19]}  Ka8 {[%clk 0:00:19]} 63. a4 {[%clk 0:00:20]}  Ka7 {[%clk 0:00:19]} 64. a5 {[%clk 0:00:20]}  Ka8 {[%clk 0:00:20]} 65. Kb6 {[%clk 0:00:20]}  Kb8 {[%clk 0:00:20]} 66. Ka6 {[%clk 0:00:21]}  Ka8 {[%clk 0:00:21]} 67. Kb6 {[%clk 0:00:22]}  Kb8 {[%clk 0:00:21]} 68. Ka6 {[%clk 0:00:23]}  Ka8 {[%clk 0:00:22]} 69. Kb6 {[%clk 0:00:24]} 1/2-1/2


[Site "https://www.chess.com"]

[Event "Titled Tuesday Blitz April 18 Early 2023"]
[White "Real_taiatai"]
[Black "Delorme, Alban"]
[BlackFideId "623636"]
[WhiteElo "2369"]
[BlackElo "2196"]
[Result "0-1"]
[Round "03"]
[TimeControl "180+2"]
[Date "2023.04.18"]
[WhiteClock "0:02:20"]
[BlackClock "0:02:14"]

1. d4 {[%clk 0:02:55]}  Nf6 {[%clk 0:03:00]} 2. Bf4 {[%clk 0:02:54]}  g6 {[%clk 0:03:00]} 3. Nc3 {[%clk 0:02:54]}  Bg7 {[%clk 0:02:58]} 4. e4 {[%clk 0:02:54]}  d6 {[%clk 0:02:58]} 5. Qd3 {[%clk 0:02:53]}  O-O {[%clk 0:02:58]} 6. Nf3 {[%clk 0:02:48]}  c5 {[%clk 0:02:58]} 7. d5 {[%clk 0:02:46]}  Qa5 {[%clk 0:02:48]} 8. O-O-O {[%clk 0:02:44]}  a6 {[%clk 0:02:42]} 9. e5 {[%clk 0:02:36]}  Nh5 {[%clk 0:02:40]} 10. Bd2 {[%clk 0:02:34]}  b5 {[%clk 0:02:21]} 11. h3 {[%clk 0:02:27]}  b4 {[%clk 0:02:17]} 12. g4 {[%clk 0:02:26]}  bxc3 {[%clk 0:02:16]} 13. Bxc3 {[%clk 0:02:27]}  Qxa2 {[%clk 0:02:16]} 14. gxh5 {[%clk 0:02:27]}  Bh6+ {[%clk 0:02:15]} 15. Bd2 {[%clk 0:02:20]}  Qa1# {[%clk 0:02:14]} 0-1


[Site "https://www.chess.com"]

[Event "Titled Tuesday Blitz April 18 Early 2023"]
[White "Ng, Gary"]
[Black "Averjanov, Alexey"]
[WhiteFideId "2604914"]
[BlackFideId "14109867"]
[WhiteElo "2319"]
[BlackElo "2610"]
[Result "0-1"]
[Round "03"]
[TimeControl "180+2"]
[Date "2023.04.18"]
[WhiteClock "0:00:02"]
[BlackClock "0:01:16"]

1. d4 {[%clk 0:02:51]}  d5 {[%clk 0:02:59]} 2. Bf4 {[%clk 0:02:52]}  Nf6 {[%clk 0:02:59]} 3. e3 {[%clk 0:02:52]}  e6 {[%clk 0:02:58]} 4. Nd2 {[%clk 0:02:52]}  c5 {[%clk 0:02:58]} 5. c3 {[%clk 0:02:52]}  Bd6 {[%clk 0:02:58]} 6. Bg3 {[%clk 0:02:52]}  Qc7 {[%clk 0:02:58]} 7. dxc5 {[%clk 0:02:40]}  Qxc5 {[%clk 0:02:56]} 8. Qc2 {[%clk 0:02:34]}  O-O {[%clk 0:02:55]} 9. Bd3 {[%clk 0:02:32]}  Bxg3 {[%clk 0:02:54]} 10. hxg3 {[%clk 0:02:22]}  h6 {[%clk 0:02:54]} 11. Ngf3 {[%clk 0:02:12]}  Nc6 {[%clk 0:02:52]} 12. e4 {[%clk 0:02:10]}  dxe4 {[%clk 0:02:49]} 13. Nxe4 {[%clk 0:02:10]}  Nxe4 {[%clk 0:02:49]} 14. Bxe4 {[%clk 0:02:10]}  f5 {[%clk 0:02:50]} 15. Bxc6 {[%clk 0:01:51]}  bxc6 {[%clk 0:02:48]} 16. O-O {[%clk 0:01:41]}  e5 {[%clk 0:02:48]} 17. Rfe1 {[%clk 0:01:41]}  e4 {[%clk 0:02:47]} 18. Nd4 {[%clk 0:01:41]}  a5 {[%clk 0:02:36]} 19. g4 {[%clk 0:01:36]}  fxg4 {[%clk 0:02:32]} 20. Qxe4 {[%clk 0:01:36]}  Rf6 {[%clk 0:02:25]} 21. Qe8+ {[%clk 0:01:18]}  Kh7 {[%clk 0:02:23]} 22. Qe4+ {[%clk 0:01:18]}  Kh8 {[%clk 0:02:23]} 23. Qe8+ {[%clk 0:01:16]}  Rf8 {[%clk 0:02:23]} 24. Qxc6 {[%clk 0:01:14]}  Qa7 {[%clk 0:02:17]} 25. Re3 {[%clk 0:00:45]}  Qf7 {[%clk 0:02:15]} 26. f3 {[%clk 0:00:32]}  Rb8 {[%clk 0:02:07]} 27. b3 {[%clk 0:00:24]}  Bb7 {[%clk 0:01:59]} 28. Qc5 {[%clk 0:00:24]}  g3 {[%clk 0:01:54]} 29. Qxa5 {[%clk 0:00:20]}  Qf4 {[%clk 0:01:51]} 30. Rae1 {[%clk 0:00:19]}  Qh4 {[%clk 0:01:48]} 31. Qe5 {[%clk 0:00:09]}  Qh2+ {[%clk 0:01:47]} 32. Kf1 {[%clk 0:00:10]}  Ba6+ {[%clk 0:01:41]} 33. c4 {[%clk 0:00:10]}  Qh1+ {[%clk 0:01:41]} 34. Ke2 {[%clk 0:00:10]}  Qxg2+ {[%clk 0:01:41]} 35. Kd1 {[%clk 0:00:10]}  Qxa2 {[%clk 0:01:40]} 36. Nf5 {[%clk 0:00:10]}  Rbd8+ {[%clk 0:01:38]} 37. Kc1 {[%clk 0:00:09]}  Rf6 {[%clk 0:01:33]} 38. Nxg7 {[%clk 0:00:08]}  Qa3+ {[%clk 0:01:29]} 39. Kb1 {[%clk 0:00:07]}  Rd2 {[%clk 0:01:16]} 40. Qe8+ {[%clk 0:00:02]}  Kh7 {[%clk 0:01:16]} 0-1


[Site "https://www.chess.com"]

[Event "Titled Tuesday Blitz April 18 Early 2023"]
[White "Pesotskiy, Mikhail"]
[Black "Arias, Juan Cruz"]
[WhiteFideId "34164453"]
[BlackFideId "118540"]
[WhiteElo "2131"]
[BlackElo "2243"]
[Result "0-1"]
[Round "03"]
[TimeControl "180+2"]
[Date "2023.04.18"]
[WhiteClock "0:00:16"]
[BlackClock "0:01:52"]

1. d4 {[%clk 0:03:00]}  Nf6 {[%clk 0:02:55]} 2. c4 {[%clk 0:03:00]}  c5 {[%clk 0:02:55]} 3. d5 {[%clk 0:02:59]}  e5 {[%clk 0:02:55]} 4. Nc3 {[%clk 0:02:59]}  d6 {[%clk 0:02:55]} 5. e4 {[%clk 0:02:59]}  Be7 {[%clk 0:02:55]} 6. Bd3 {[%clk 0:02:57]}  Nbd7 {[%clk 0:02:55]} 7. Nge2 {[%clk 0:02:52]}  Nf8 {[%clk 0:02:49]} 8. Be3 {[%clk 0:02:52]}  Ng6 {[%clk 0:02:48]} 9. f3 {[%clk 0:02:52]}  h5 {[%clk 0:02:48]} 10. Qd2 {[%clk 0:02:52]}  h4 {[%clk 0:02:47]} 11. O-O-O {[%clk 0:02:51]}  Nh7 {[%clk 0:02:47]} 12. g3 {[%clk 0:02:50]}  Bg5 {[%clk 0:02:46]} 13. f4 {[%clk 0:02:51]}  Bh6 {[%clk 0:02:44]} 14. Rdf1 {[%clk 0:02:27]}  Bg4 {[%clk 0:02:43]} 15. h3 {[%clk 0:02:25]}  Bxe2 {[%clk 0:02:42]} 16. Nxe2 {[%clk 0:02:21]}  hxg3 {[%clk 0:02:42]} 17. Rhg1 {[%clk 0:02:16]}  exf4 {[%clk 0:02:41]} 18. Nxf4 {[%clk 0:02:16]}  Ne5 {[%clk 0:02:39]} 19. Rxg3 {[%clk 0:02:13]}  Qh4 {[%clk 0:02:33]} 20. Rfg1 {[%clk 0:02:12]}  O-O-O {[%clk 0:02:29]} 21. Ne2 {[%clk 0:01:27]}  Bxe3 {[%clk 0:02:25]} 22. Qxe3 {[%clk 0:01:28]}  g6 {[%clk 0:02:20]} 23. Nf4 {[%clk 0:01:09]}  Nf8 {[%clk 0:02:16]} 24. Be2 {[%clk 0:01:01]}  Kb8 {[%clk 0:02:12]} 25. b3 {[%clk 0:00:59]}  Nfd7 {[%clk 0:02:11]} 26. Bg4 {[%clk 0:00:59]}  Nf6 {[%clk 0:02:10]} 27. Nd3 {[%clk 0:00:56]}  Rde8 {[%clk 0:02:04]} 28. Nxe5 {[%clk 0:00:52]}  Rxe5 {[%clk 0:02:05]} 29. Qf4 {[%clk 0:00:51]}  Nxe4 {[%clk 0:01:59]} 30. Re3 {[%clk 0:00:19]}  f5 {[%clk 0:01:58]} 31. Rxe4 {[%clk 0:00:17]}  fxe4 {[%clk 0:01:56]} 32. Qf7 {[%clk 0:00:16]}  e3 {[%clk 0:01:54]} 33. Qd7 {[%clk 0:00:16]}  Qe7 {[%clk 0:01:52]} 0-1


[Site "https://www.chess.com"]

[Event "Titled Tuesday Blitz April 18 Early 2023"]
[White "Novik, Maxim"]
[Black "Rosenberg, Evan S"]
[WhiteFideId "4102924"]
[BlackFideId "2019299"]
[WhiteElo "2287"]
[BlackElo "2303"]
[Result "1-0"]
[Round "03"]
[TimeControl "180+2"]
[Date "2023.04.18"]
[WhiteClock "0:01:17"]
[BlackClock "0:00:03"]

1. c4 {[%clk 0:01:48]}  e6 {[%clk 0:02:59]} 2. Nc3 {[%clk 0:01:48]}  d5 {[%clk 0:02:59]} 3. d4 {[%clk 0:01:48]}  c5 {[%clk 0:02:59]} 4. cxd5 {[%clk 0:01:48]}  cxd4 {[%clk 0:02:59]} 5. Qa4+ {[%clk 0:01:48]}  Bd7 {[%clk 0:03:00]} 6. Qxd4 {[%clk 0:01:49]}  exd5 {[%clk 0:03:00]} 7. Qxd5 {[%clk 0:01:49]}  Nf6 {[%clk 0:03:01]} 8. Qd1 {[%clk 0:01:49]}  Bc5 {[%clk 0:02:57]} 9. Nf3 {[%clk 0:01:49]}  O-O {[%clk 0:02:56]} 10. e3 {[%clk 0:01:49]}  Qe7 {[%clk 0:02:52]} 11. Be2 {[%clk 0:01:49]}  Rd8 {[%clk 0:02:51]} 12. O-O {[%clk 0:01:48]}  Nc6 {[%clk 0:02:51]} 13. Bd2 {[%clk 0:01:48]}  Ne5 {[%clk 0:02:46]} 14. Nxe5 {[%clk 0:01:47]}  Qxe5 {[%clk 0:02:46]} 15. Bf3 {[%clk 0:01:46]}  h5 {[%clk 0:02:06]} 16. Qe2 {[%clk 0:01:39]}  Bg4 {[%clk 0:01:45]} 17. Rad1 {[%clk 0:01:39]}  Rd7 {[%clk 0:01:21]} 18. Bc1 {[%clk 0:01:38]}  Rad8 {[%clk 0:01:20]} 19. Rxd7 {[%clk 0:01:38]}  Rxd7 {[%clk 0:01:20]} 20. Rd1 {[%clk 0:01:38]}  Rxd1+ {[%clk 0:00:48]} 21. Qxd1 {[%clk 0:01:36]}  a6 {[%clk 0:00:28]} 22. h3 {[%clk 0:01:23]}  Bxf3 {[%clk 0:00:27]} 23. Qxf3 {[%clk 0:01:23]}  Bd6 {[%clk 0:00:12]} 24. Bd2 {[%clk 0:01:23]}  Qh2+ {[%clk 0:00:12]} 25. Kf1 {[%clk 0:01:24]}  Qh1+ {[%clk 0:00:13]} 26. Ke2 {[%clk 0:01:23]}  b5 {[%clk 0:00:08]} 27. Ne4 {[%clk 0:01:21]}  Nxe4 {[%clk 0:00:08]} 28. Qxe4 {[%clk 0:01:21]}  Qa1 {[%clk 0:00:03]} 29. Qe8+ {[%clk 0:01:17]}  Kh7 {[%clk 0:00:03]} 30. Qxf7 {[%clk 0:01:17]}  Qxb2 {[%clk 0:00:03]} 31. Qxh5+ {[%clk 0:01:17]}  Kg8 {[%clk 0:00:03]} 32. Qd5+ {[%clk 0:01:17]} 1-0


[Site "https://www.chess.com"]